Workbook

Sheet Курятники
A1: № | B1: Порода | C1: Окрас | D1: Номер гнезда | E1: Дата создания гнезда | F1: Из них кур | G1: Из них петухов | H1: Количество петухов | I1: Цена инкубационного яйца за шт. | J1: Цена суточного цыпленка за шт. | K1: Цена недельного (7-13 дней) Цыпленка | L1: Цена Двухнедельново (14-20 дней) Цыпленка | M1: Цена Трехнедельноыо (21-27 дней) Цыпленка | N1: Цена Месячного (28-41 день) Цыпленка | O1: Цена двухмесячного (42-71 день) Цыпленка | P1: Цена трехмесячного (72-101 день) Цыпленка | Q1: Цена четырехмесячного (102-131 день) Цыпленка
A2: 1 | B2: Амераукана | C2: дикий | E2: 2015-12-04 | H2: =SUM(F2-G2) -> 0 | I2: 180 | J2: 300 | K2: =SUM(Курятники!$J2+50) -> 350 | L2: =SUM(Курятники!$K2+50) -> 400 | M2: =SUM(Курятники!$L2+50) -> 450 | N2: =SUM(Курятники!$M2+50) -> 500 | O2: =SUM(Курятники!$N2+200) -> 700 | P2: =SUM(Курятники!$O2+200) -> 900 | Q2: =SUM(Курятники!$P2+200) -> 1100
A3: =IF(AND(A2<>"",B2<>""),A2+1,"") -> 2 | B3: Амераукана | C3: белый | D3: 6 | E3: 2015-12-04 | F3: 4 | G3: 3 | H3: 1 | I3: 200 | J3: 350 | K3: =SUM(Курятники!$J3+50) -> 400 | L3: =SUM(Курятники!$K3+50) -> 450 | M3: =SUM(Курятники!$L3+50) -> 500 | N3: =SUM(Курятники!$M3+50) -> 550 | O3: =SUM(Курятники!$N3+200) -> 750 | P3: =SUM(Курятники!$O3+200) -> 950 | Q3: =SUM(Курятники!$P3+200) -> 1150
A4: 3 | B4: Араукана | C4: дикий | E4: 04.12.2015 | H4: 0 | I4: 200 | J4: 350 | K4: =SUM(Курятники!$J4+50) -> 400 | L4: =SUM(Курятники!$K4+50) -> 450 | M4: =SUM(Курятники!$L4+50) -> 500 | N4: =SUM(Курятники!$M4+50) -> 550 | O4: =SUM(Курятники!$N4+200) -> 750 | P4: =SUM(Курятники!$O4+200) -> 950 | Q4: =SUM(Курятники!$P4+200) -> 1150
A5: 4 | B5: Аям Цемани | C5: черный | D5: 7 | E5: 04.12.2015 | F5: 3 | G5: 2 | H5: 1 | I5: 490 | J5: 1000 | K5: =SUM(Курятники!$J5+50) -> 1050 | L5: =SUM(Курятники!$K5+50) -> 1100 | M5: =SUM(Курятники!$L5+50) -> 1150 | N5: =SUM(Курятники!$M5+50) -> 1200 | O5: =SUM(Курятники!$N5+200) -> 1400 | P5: =SUM(Курятники!$O5+200) -> 1600 | Q5: =SUM(Курятники!$P5+200) -> 1800
A6: 5 | B6: Барневельдер | C6: красный черно-окаймленный | E6: 04.12.2015 | H6: 0 | I6: 200 | J6: 350 | K6: =SUM(Курятники!$J6+50) -> 400 | L6: =SUM(Курятники!$K6+50) -> 450 | M6: =SUM(Курятники!$L6+50) -> 500 | N6: =SUM(Курятники!$M6+50) -> 550 | O6: =SUM(Курятники!$N6+200) -> 750 | P6: =SUM(Курятники!$O6+200) -> 950 | Q6: =SUM(Курятники!$P6+200) -> 1150
A7: 6 | B7: Билефельдер | C7: аутосексный | E7: 04.12.2015 | H7: 0 | I7: 190 | J7: 350 | K7: =SUM(Курятники!$J7+50) -> 400 | L7: =SUM(Курятники!$K7+50) -> 450 | M7: =SUM(Курятники!$L7+50) -> 500 | N7: =SUM(Курятники!$M7+50) -> 550 | O7: =SUM(Курятники!$N7+200) -> 750 | P7: =SUM(Курятники!$O7+200) -> 950 | Q7: =SUM(Курятники!$P7+200) -> 1150
A8: 7 | B8: Брама | C8: темная | D8: 8C | E8: 04.12.2015 | F8: 7 | G8: 5 | H8: 2 | I8: 150 | J8: 200 | K8: =SUM(Курятники!$J8+50) -> 250 | L8: =SUM(Курятники!$K8+50) -> 300 | M8: =SUM(Курятники!$L8+50) -> 350 | N8: =SUM(Курятники!$M8+50) -> 400 | O8: =SUM(Курятники!$N8+200) -> 600 | P8: =SUM(Курятники!$O8+200) -> 800 | Q8: =SUM(Курятники!$P8+200) -> 1000
A9: 8 | B9: Брама | C9: курапатчетая | D9: 9C | E9: 04.12.2015 | F9: 5 | G9: 4 | H9: 1 | I9: 150 | J9: 200 | K9: =SUM(Курятники!$J9+50) -> 250 | L9: =SUM(Курятники!$K9+50) -> 300 | M9: =SUM(Курятники!$L9+50) -> 350 | N9: =SUM(Курятники!$M9+50) -> 400 | O9: =SUM(Курятники!$N9+200) -> 600 | P9: =SUM(Курятники!$O9+200) -> 800 | Q9: =SUM(Курятники!$P9+200) -> 1000
A10: 9 | B10: Виандот | C10: серебряный | E10: 04.12.2015 | H10: 0 | I10: 180 | J10: 300 | K10: =SUM(Курятники!$J10+50) -> 350 | L10: =SUM(Курятники!$K10+50) -> 400 | M10: =SUM(Курятники!$L10+50) -> 450 | N10: =SUM(Курятники!$M35+50) -> 550 | O10: =SUM(Курятники!$N35+200) -> 750 | P10: =SUM(Курятники!$O10+200) -> 950 | Q10: =SUM(Курятники!$P35+200) -> 1100
A11: 10 | B11: Галан (русская черная бородатая) | E11: 04.12.2015 | H11: 0 | I11: 150 | J11: 250 | K11: =SUM(Курятники!$J11+50) -> 300 | L11: =SUM(Курятники!$K11+50) -> 350 | M11: =SUM(Курятники!$L11+50) -> 400 | N11: =SUM(Курятники!$M10+50) -> 500 | O11: =SUM(Курятники!$N10+200) -> 750 | P11: =SUM(Курятники!$O11+200) -> 950 | Q11: =SUM(Курятники!$P10+200) -> 1150
A12: 11 | B12: Джерсийский гигант | C12: черный | E12: 04.12.2015 | H12: 0 | I12: 180 | J12: 350 | K12: =SUM(Курятники!$J12+50) -> 400 | L12: =SUM(Курятники!$K12+50) -> 450 | M12: =SUM(Курятники!$L12+50) -> 500 | N12: =SUM(Курятники!$M11+50) -> 450 | O12: =SUM(Курятники!$N11+200) -> 700 | P12: =SUM(Курятники!$O12+200) -> 900 | Q12: =SUM(Курятники!$P11+200) -> 1150
A13: 12 | B13: Кохинхин | C13: голубой, черный | D13: 4C | E13: 04.12.2015 | F13: 7 | G13: 6 | H13: 1 | I13: 150 | J13: 300 | K13: =SUM(Курятники!$J13+50) -> 350 | L13: =SUM(Курятники!$K13+50) -> 400 | M13: =SUM(Курятники!$L13+50) -> 450 | N13: =SUM(Курятники!$M12+50) -> 550 | O13: =SUM(Курятники!$N12+200) -> 650 | P13: =SUM(Курятники!$O13+200) -> 850 | Q13: =SUM(Курятники!$P12+200) -> 1100
A14: 13 | B14: Кохинхин | C14: золотистый черно-окаймленный | E14: 04.12.2015 | H14: 0 | I14: 490 | J14: 1000 | K14: =SUM(Курятники!$J14+50) -> 1050 | L14: =SUM(Курятники!$K14+50) -> 1100 | M14: =SUM(Курятники!$L14+50) -> 1150 | N14: =SUM(Курятники!$M30+50) -> 700 | O14: =SUM(Курятники!$N30+200) -> 900 | P14: =SUM(Курятники!$O14+200) -> 1100 | Q14: =SUM(Курятники!$P30+200) -> 1300
A15: 14 | B15: Кохинхин | C15: белый | E15: 04.12.2015 | H15: 0 | I15: 150 | J15: 300 | K15: =SUM(Курятники!$J15+50) -> 350 | L15: =SUM(Курятники!$K15+50) -> 400 | M15: =SUM(Курятники!$L15+50) -> 450 | N15: =SUM(Курятники!$M31+50) -> 300 | O15: =SUM(Курятники!$N31+200) -> 500 | P15: =SUM(Курятники!$O15+200) -> 700 | Q15: =SUM(Курятники!$P31+200) -> 900
A16: 15 | B16: Кохинхин | C16: серебрянный черно-окаймленный | E16: 04.12.2015 | H16: 0 | I16: 400 | J16: 800 | K16: =SUM(Курятники!$J16+50) -> 850 | L16: =SUM(Курятники!$K16+50) -> 900 | M16: =SUM(Курятники!$L16+50) -> 950 | N16: =SUM(Курятники!$M36+50) -> 700 | O16: =SUM(Курятники!$N36+200) -> 850 | P16: =SUM(Курятники!$O16+200) -> 1050 | Q16: =SUM(Курятники!$P36+200) -> 1200
A17: 16 | B17: Кохинхин | C17: черный мрамор | D17: 2C | E17: 04.12.2015 | F17: 3 | G17: 2 | H17: 1 | I17: 150 | J17: 300 | K17: =SUM(Курятники!$J17+50) -> 350 | L17: =SUM(Курятники!$K17+50) -> 400 | M17: =SUM(Курятники!$L17+50) -> 450 | N17: =SUM(Курятники!$M37+50) -> 450 | O17: =SUM(Курятники!$N37+200) -> 750 | P17: =SUM(Курятники!$O17+200) -> 950 | Q17: =SUM(Курятники!$P37+200) -> 1100
A18: 17 | B18: Ла Флеш | D18: 1C | E18: 04.12.2015 | F18: 5 | G18: 4 | H18: 1 | I18: 150 | J18: 300 | K18: =SUM(Курятники!$J18+50) -> 350 | L18: =SUM(Курятники!$K18+50) -> 400 | M18: =SUM(Курятники!$L18+50) -> 450 | N18: =SUM(Курятники!$M13+50) -> 500 | O18: =SUM(Курятники!$N13+200) -> 750 | P18: =SUM(Курятники!$O18+200) -> 950 | Q18: =SUM(Курятники!$P13+200) -> 1050
A19: 18 | B19: Легбар | C19: кремовый аутосексный | E19: 04.12.2015 | H19: 0 | I19: 150 | J19: 300 | K19: =SUM(Курятники!$J19+50) -> 350 | L19: =SUM(Курятники!$K19+50) -> 400 | M19: =SUM(Курятники!$L19+50) -> 450 | N19: =SUM(Курятники!$M14+50) -> 1200 | O19: =SUM(Курятники!$N14+200) -> 900 | P19: =SUM(Курятники!$O19+200) -> 1100 | Q19: =SUM(Курятники!$P14+200) -> 1300
A20: 19 | B20: Легбар (Англия) | C20: кремовый аутосексный | E20: 04.12.2015 | H20: 0 | I20: 200 | J20: 400 | K20: =SUM(Курятники!$J20+50) -> 450 | L20: =SUM(Курятники!$K20+50) -> 500 | M20: =SUM(Курятники!$L20+50) -> 550 | N20: =SUM(Курятники!$M15+50) -> 500 | O20: =SUM(Курятники!$N15+200) -> 500 | P20: =SUM(Курятники!$O20+200) -> 700 | Q20: =SUM(Курятники!$P15+200) -> 900
A21: 20 | B21: Маран | C21: черно-медный | D21: 7C | E21: 04.12.2015 | F21: 6 | G21: 4 | H21: 2 | I21: 150 | J21: 300 | K21: =SUM(Курятники!$J21+50) -> 350 | L21: =SUM(Курятники!$K21+50) -> 400 | M21: =SUM(Курятники!$L21+50) -> 450 | N21: =SUM(Курятники!$M16+50) -> 1000 | O21: =SUM(Курятники!$N16+200) -> 900 | P21: =SUM(Курятники!$O21+200) -> 1100 | Q21: =SUM(Курятники!$P16+200) -> 1250
A22: 21 | B22: Маран | C22: золотая кукушка | E22: 04.12.2015 | H22: 0 | I22: 180 | J22: 350 | K22: =SUM(Курятники!$J22+50) -> 400 | L22: =SUM(Курятники!$K22+50) -> 450 | M22: =SUM(Курятники!$L22+50) -> 500 | N22: =SUM(Курятники!$M17+50) -> 500 | O22: =SUM(Курятники!$N17+200) -> 650 | P22: =SUM(Курятники!$O22+200) -> 850 | Q22: =SUM(Курятники!$P17+200) -> 1150
A23: 22 | B23: Маран | C23: белый | E23: 04.12.2015 | H23: 0 | I23: 200 | J23: 350 | K23: =SUM(Курятники!$J23+50) -> 400 | L23: =SUM(Курятники!$K23+50) -> 450 | M23: =SUM(Курятники!$L23+50) -> 500 | N23: =SUM(Курятники!$M18+50) -> 500 | O23: =SUM(Курятники!$N18+200) -> 700 | P23: =SUM(Курятники!$O23+200) -> 900 | Q23: =SUM(Курятники!$P18+200) -> 1150
A24: 23 | B24: Маран | C24: пшеничный | E24: 04.12.2015 | H24: 0 | I24: 220 | J24: 350 | K24: =SUM(Курятники!$J24+50) -> 400 | L24: =SUM(Курятники!$K24+50) -> 450 | M24: =SUM(Курятники!$L24+50) -> 500 | N24: =SUM(Курятники!$M19+50) -> 500 | O24: =SUM(Курятники!$N19+200) -> 1400 | P24: =SUM(Курятники!$O24+200) -> 1600 | Q24: =SUM(Курятники!$P19+200) -> 1300
A25: 24 | B25: Мехеленская | C25: кукушка | E25: 04.12.2015 | H25: 0 | I25: 220 | J25: 450 | K25: =SUM(Курятники!$J25+50) -> 500 | L25: =SUM(Курятники!$K25+50) -> 550 | M25: =SUM(Курятники!$L25+50) -> 600 | N25: =SUM(Курятники!$M20+50) -> 600 | O25: =SUM(Курятники!$N20+200) -> 700 | P25: =SUM(Курятники!$O25+200) -> 900 | Q25: =SUM(Курятники!$P20+200) -> 900
A26: 25 | B26: Мехеленская | C26: белый | E26: 04.12.2015 | H26: 0 | I26: 220 | J26: 450 | K26: =SUM(Курятники!$J26+50) -> 500 | L26: =SUM(Курятники!$K26+50) -> 550 | M26: =SUM(Курятники!$L26+50) -> 600 | N26: =SUM(Курятники!$M21+50) -> 500 | O26: =SUM(Курятники!$N21+200) -> 1200 | P26: =SUM(Курятники!$O26+200) -> 1400 | Q26: =SUM(Курятники!$P21+200) -> 1300
A27: 26 | B27: Мильфлер | C27: красный мрамор | E27: 04.12.2015 | H27: 0 | J27: 500 | K27: =SUM(Курятники!$J27+50) -> 550 | L27: =SUM(Курятники!$K27+50) -> 600 | M27: =SUM(Курятники!$L27+50) -> 650 | N27: =SUM(Курятники!$M26+50) -> 650 | O27: =SUM(Курятники!$N26+200) -> 700 | P27: =SUM(Курятники!$O27+200) -> 900 | Q27: =SUM(Курятники!$P26+200) -> 1600
A28: 27 | B28: Мильфлер | C28: лавандовый | E28: 04.12.2015 | H28: 0 | J28: 500 | K28: =SUM(Курятники!$J28+50) -> 550 | L28: =SUM(Курятники!$K28+50) -> 600 | M28: =SUM(Курятники!$L28+50) -> 650 | N28: =SUM(Курятники!$M27+50) -> 700 | O28: =SUM(Курятники!$N27+200) -> 850 | P28: =SUM(Курятники!$O28+200) -> 1050 | Q28: =SUM(Курятники!$P27+200) -> 1100
A29: 28 | B29: Мильфлер | C29: шамуа | E29: 04.12.2015 | H29: 0 | J29: 500 | K29: =SUM(Курятники!$J29+50) -> 550 | L29: =SUM(Курятники!$K29+50) -> 600 | M29: =SUM(Курятники!$L29+50) -> 650 | N29: =SUM(Курятники!$M28+50) -> 700 | O29: =SUM(Курятники!$N28+200) -> 900 | P29: =SUM(Курятники!$O29+200) -> 1100 | Q29: =SUM(Курятники!$P28+200) -> 1250
A30: 29 | B30: Мильфлер | C30: черный мрамор | E30: 04.12.2015 | H30: 0 | J30: 500 | K30: =SUM(Курятники!$J30+50) -> 550 | L30: =SUM(Курятники!$K30+50) -> 600 | M30: =SUM(Курятники!$L30+50) -> 650 | N30: =SUM(Курятники!$M29+50) -> 700 | O30: =SUM(Курятники!$N29+200) -> 900 | P30: =SUM(Курятники!$O30+200) -> 1100 | Q30: =SUM(Курятники!$P29+200) -> 1300
A31: 30 | B31: Мини-мясная | C31: палевый | E31: 04.12.2015 | H31: 0 | I31: 50 | J31: 100 | K31: =SUM(Курятники!$J31+50) -> 150 | L31: =SUM(Курятники!$K31+50) -> 200 | M31: =SUM(Курятники!$L31+50) -> 250 | N31: =SUM(Курятники!$M32+50) -> 300 | O31: =SUM(Курятники!$N32+200) -> 500 | P31: =SUM(Курятники!$O31+200) -> 700 | Q31: =SUM(Курятники!$P32+200) -> 1150
A32: 31 | B32: Мини-мясная | C32: белый | E32: 04.12.2015 | H32: 0 | I32: 50 | J32: 100 | K32: =SUM(Курятники!$J32+50) -> 150 | L32: =SUM(Курятники!$K32+50) -> 200 | M32: =SUM(Курятники!$L32+50) -> 250 | N32: =SUM(Курятники!$M33+50) -> 300 | O32: =SUM(Курятники!$N33+200) -> 750 | P32: =SUM(Курятники!$O32+200) -> 950 | Q32: =SUM(Курятники!$P33+200) -> 1150
A33: 32 | B33: Мини-мясная | C33: красный | E33: 04.12.2015 | H33: 0 | I33: 50 | J33: 100 | K33: =SUM(Курятники!$J33+50) -> 150 | L33: =SUM(Курятники!$K33+50) -> 200 | M33: =SUM(Курятники!$L33+50) -> 250 | N33: =SUM(Курятники!$M34+50) -> 550 | O33: =SUM(Курятники!$N34+200) -> 750 | P33: =SUM(Курятники!$O33+200) -> 950 | Q33: =SUM(Курятники!$P34+200) -> 1100
A34: 33 | B34: Орпингтон | C34: красный мрамор | D34: 3C | E34: 04.12.2015 | F34: 3 | G34: 1 | H34: =SUM(F34-G34) -> 2 | I34: 200 | J34: 350 | K34: =SUM(Курятники!$J34+50) -> 400 | L34: =SUM(Курятники!$K34+50) -> 450 | M34: =SUM(Курятники!$L34+50) -> 500 | N34: =SUM(Курятники!$M22+50) -> 550 | O34: =SUM(Курятники!$N22+200) -> 700 | P34: =SUM(Курятники!$O34+200) -> 900 | Q34: =SUM(Курятники!$P22+200) -> 1050
A35: =IF(AND(A34<>"",B34<>""),A34+1,"") -> 34 | B35: Орпингтон | C35: золотистый черно-окаймленный | D35: 5C | E35: 04.12.2015 | F35: 6 | G35: 5 | H35: 1 | I35: 190 | J35: 350 | K35: =SUM(Курятники!$J35+50) -> 400 | L35: =SUM(Курятники!$K35+50) -> 450 | M35: =SUM(Курятники!$L35+50) -> 500 | N35: =SUM(Курятники!$M23+50) -> 550 | O35: =SUM(Курятники!$N23+200) -> 700 | P35: =SUM(Курятники!$O35+200) -> 900 | Q35: =SUM(Курятники!$P23+200) -> 1100
A36: 35 | B36: Сибрайт | C36: золотой | E36: 04.12.2015 | F36: 2 | G36: 1 | H36: 1 | J36: 500 | K36: =SUM(Курятники!$J36+50) -> 550 | L36: =SUM(Курятники!$K36+50) -> 600 | M36: =SUM(Курятники!$L36+50) -> 650 | N36: =SUM(Курятники!$M25+50) -> 650 | O36: =SUM(Курятники!$N25+200) -> 800 | P36: =SUM(Курятники!$O36+200) -> 1000 | Q36: =SUM(Курятники!$P25+200) -> 1100
A37: 36 | B37: Сусекс | C37: красный фарфор | D37: 12C | E37: 04.12.2015 | F37: 9 | G37: 6 | H37: 3 | I37: 150 | J37: 250 | K37: =SUM(Курятники!$J37+50) -> 300 | L37: =SUM(Курятники!$K37+50) -> 350 | M37: =SUM(Курятники!$L37+50) -> 400 | N37: =SUM(Курятники!$M24+50) -> 550 | O37: =SUM(Курятники!$N24+200) -> 700 | P37: =SUM(Курятники!$O37+200) -> 900 | Q37: =SUM(Курятники!$P24+200) -> 1800
A38: 37 | B38: Фавероль | C38: лососевый | E38: 04.12.2015 | H38: 0 | I38: 180 | J38: 300 | K38: =SUM(Курятники!$J38+50) -> 350 | L38: =SUM(Курятники!$K38+50) -> 400 | M38: =SUM(Курятники!$L38+50) -> 450 | P38: =SUM(Курятники!$O38+200) -> 200
A39: 38 | H39: 0 | K39: =SUM(Курятники!$J39+50) -> 50 | L39: =SUM(Курятники!$K39+50) -> 100 | M39: =SUM(Курятники!$L39+50) -> 150 | P39: =SUM(Курятники!$O39+200) -> 200
H40: 0 | K40: =SUM(Курятники!$J40+50) -> 50 | L40: =SUM(Курятники!$K40+50) -> 100 | M40: =SUM(Курятники!$L40+50) -> 150 | P40: =SUM(Курятники!$O40+200) -> 200
H41: 0 | K41: =SUM(Курятники!$J41+50) -> 50 | L41: =SUM(Курятники!$K41+50) -> 100 | M41: =SUM(Курятники!$L41+50) -> 150 | P41: =SUM(Курятники!$O41+200) -> 200
H42: 0 | K42: =SUM(Курятники!$J42+50) -> 50 | L42: =SUM(Курятники!$K42+50) -> 100 | M42: =SUM(Курятники!$L42+50) -> 150 | P42: =SUM(Курятники!$O42+200) -> 200
H43: 0 | K43: =SUM(Курятники!$J43+50) -> 50 | L43: =SUM(Курятники!$K43+50) -> 100 | M43: =SUM(Курятники!$L43+50) -> 150 | P43: =SUM(Курятники!$O43+200) -> 200
H44: 0 | K44: =SUM(Курятники!$J44+50) -> 50 | L44: =SUM(Курятники!$K44+50) -> 100 | M44: =SUM(Курятники!$L44+50) -> 150 | P44: =SUM(Курятники!$O44+200) -> 200
H45: 0 | K45: =SUM(Курятники!$J45+50) -> 50 | L45: =SUM(Курятники!$K45+50) -> 100 | M45: =SUM(Курятники!$L45+50) -> 150 | P45: =SUM(Курятники!$O45+200) -> 200
H46: 0 | K46: =SUM(Курятники!$J46+50) -> 50 | L46: =SUM(Курятники!$K46+50) -> 100 | M46: =SUM(Курятники!$L46+50) -> 150 | P46: =SUM(Курятники!$O46+200) -> 200
H47: 0 | K47: =SUM(Курятники!$J47+50) -> 50 | L47: =SUM(Курятники!$K47+50) -> 100 | M47: =SUM(Курятники!$L47+50) -> 150 | P47: =SUM(Курятники!$O47+200) -> 200
H48: 0 | K48: =SUM(Курятники!$J48+50) -> 50 | L48: =SUM(Курятники!$K48+50) -> 100 | M48: =SUM(Курятники!$L48+50) -> 150 | P48: =SUM(Курятники!$O48+200) -> 200
H49: 0 | K49: =SUM(Курятники!$J49+50) -> 50 | L49: =SUM(Курятники!$K49+50) -> 100 | M49: =SUM(Курятники!$L49+50) -> 150 | P49: =SUM(Курятники!$O49+200) -> 200
H50: 0 | K50: =SUM(Курятники!$J50+50) -> 50 | L50: =SUM(Курятники!$K50+50) -> 100 | M50: =SUM(Курятники!$L50+50) -> 150 | P50: =SUM(Курятники!$O50+200) -> 200
H51: 0 | K51: =SUM(Курятники!$J51+50) -> 50 | L51: =SUM(Курятники!$K51+50) -> 100 | M51: =SUM(Курятники!$L51+50) -> 150 | P51: =SUM(Курятники!$O51+200) -> 200
H52: 0 | K52: =SUM(Курятники!$J52+50) -> 50 | L52: =SUM(Курятники!$K52+50) -> 100 | M52: =SUM(Курятники!$L52+50) -> 150 | P52: =SUM(Курятники!$O52+200) -> 200
H53: 0 | K53: =SUM(Курятники!$J53+50) -> 50 | L53: =SUM(Курятники!$K53+50) -> 100 | M53: =SUM(Курятники!$L53+50) -> 150 | P53: =SUM(Курятники!$O53+200) -> 200
H54: 0 | K54: =SUM(Курятники!$J54+50) -> 50 | L54: =SUM(Курятники!$K54+50) -> 100 | M54: =SUM(Курятники!$L54+50) -> 150 | P54: =SUM(Курятники!$O54+200) -> 200
H55: 0 | K55: =SUM(Курятники!$J55+50) -> 50 | L55: =SUM(Курятники!$K55+50) -> 100 | M55: =SUM(Курятники!$L55+50) -> 150 | P55: =SUM(Курятники!$O55+200) -> 200
H56: 0 | K56: =SUM(Курятники!$J56+50) -> 50 | L56: =SUM(Курятники!$K56+50) -> 100 | M56: =SUM(Курятники!$L56+50) -> 150 | P56: =SUM(Курятники!$O56+200) -> 200
H57: 0 | K57: =SUM(Курятники!$J57+50) -> 50 | L57: =SUM(Курятники!$K57+50) -> 100 | M57: =SUM(Курятники!$L57+50) -> 150 | P57: =SUM(Курятники!$O57+200) -> 200
H58: 0 | K58: =SUM(Курятники!$J58+50) -> 50 | L58: =SUM(Курятники!$K58+50) -> 100 | M58: =SUM(Курятники!$L58+50) -> 150 | P58: =SUM(Курятники!$O58+200) -> 200
H59: 0 | K59: =SUM(Курятники!$J59+50) -> 50 | L59: =SUM(Курятники!$K59+50) -> 100 | M59: =SUM(Курятники!$L59+50) -> 150 | P59: =SUM(Курятники!$O59+200) -> 200
H60: 0 | K60: =SUM(Курятники!$J60+50) -> 50 | L60: =SUM(Курятники!$K60+50) -> 100 | M60: =SUM(Курятники!$L60+50) -> 150 | P60: =SUM(Курятники!$O60+200) -> 200
H61: 0 | K61: =SUM(Курятники!$J61+50) -> 50 | L61: =SUM(Курятники!$K61+50) -> 100 | M61: =SUM(Курятники!$L61+50) -> 150 | P61: =SUM(Курятники!$O61+200) -> 200
H62: 0 | K62: =SUM(Курятники!$J62+50) -> 50 | L62: =SUM(Курятники!$K62+50) -> 100 | M62: =SUM(Курятники!$L62+50) -> 150 | P62: =SUM(Курятники!$O62+200) -> 200
H63: 0 | K63: =SUM(Курятники!$J63+50) -> 50 | L63: =SUM(Курятники!$K63+50) -> 100 | M63: =SUM(Курятники!$L63+50) -> 150 | P63: =SUM(Курятники!$O63+200) -> 200
H64: 0 | K64: =SUM(Курятники!$J64+50) -> 50 | L64: =SUM(Курятники!$K64+50) -> 100 | M64: =SUM(Курятники!$L64+50) -> 150 | P64: =SUM(Курятники!$O64+200) -> 200
H65: 0 | K65: =SUM(Курятники!$J65+50) -> 50 | L65: =SUM(Курятники!$K65+50) -> 100 | M65: =SUM(Курятники!$L65+50) -> 150 | P65: =SUM(Курятники!$O65+200) -> 200
H66: =SUM(F66-G66) -> 0 | K66: =SUM(Курятники!$J66+50) -> 50 | L66: =SUM(Курятники!$K66+50) -> 100 | M66: =SUM(Курятники!$L66+50) -> 150 | P66: =SUM(Курятники!$O66+200) -> 200
A67: =IF(AND(A66<>"",B66<>""),A66+1,"") ->  | H67: 0 | K67: =SUM(Курятники!$J67+50) -> 50 | L67: =SUM(Курятники!$K67+50) -> 100 | M67: =SUM(Курятники!$L67+50) -> 150 | P67: =SUM(Курятники!$O67+200) -> 200
H68: 0 | K68: =SUM(Курятники!$J68+50) -> 50 | L68: =SUM(Курятники!$K68+50) -> 100 | M68: =SUM(Курятники!$L68+50) -> 150 | P68: =SUM(Курятники!$O68+200) -> 200
H69: 0 | K69: =SUM(Курятники!$J69+50) -> 50 | L69: =SUM(Курятники!$K69+50) -> 100 | M69: =SUM(Курятники!$L69+50) -> 150 | P69: =SUM(Курятники!$O69+200) -> 200
H70: 0 | K70: =SUM(Курятники!$J70+50) -> 50 | L70: =SUM(Курятники!$K70+50) -> 100 | M70: =SUM(Курятники!$L70+50) -> 150 | P70: =SUM(Курятники!$O70+200) -> 200
H71: 0 | K71: =SUM(Курятники!$J71+50) -> 50 | L71: =SUM(Курятники!$K71+50) -> 100 | M71: =SUM(Курятники!$L71+50) -> 150 | P71: =SUM(Курятники!$O71+200) -> 200
H72: 0 | K72: =SUM(Курятники!$J72+50) -> 50 | L72: =SUM(Курятники!$K72+50) -> 100 | M72: =SUM(Курятники!$L72+50) -> 150 | P72: =SUM(Курятники!$O72+200) -> 200
H73: 0 | K73: =SUM(Курятники!$J73+50) -> 50 | L73: =SUM(Курятники!$K73+50) -> 100 | M73: =SUM(Курятники!$L73+50) -> 150 | P73: =SUM(Курятники!$O73+200) -> 200
H74: 0 | K74: =SUM(Курятники!$J74+50) -> 50 | L74: =SUM(Курятники!$K74+50) -> 100 | M74: =SUM(Курятники!$L74+50) -> 150 | P74: =SUM(Курятники!$O74+200) -> 200
H75: 0 | K75: =SUM(Курятники!$J75+50) -> 50 | L75: =SUM(Курятники!$K75+50) -> 100 | M75: =SUM(Курятники!$L75+50) -> 150 | P75: =SUM(Курятники!$O75+200) -> 200
H76: 0 | K76: =SUM(Курятники!$J76+50) -> 50 | L76: =SUM(Курятники!$K76+50) -> 100 | M76: =SUM(Курятники!$L76+50) -> 150 | P76: =SUM(Курятники!$O76+200) -> 200
H77: 0 | K77: =SUM(Курятники!$J77+50) -> 50 | L77: =SUM(Курятники!$K77+50) -> 100 | M77: =SUM(Курятники!$L77+50) -> 150 | P77: =SUM(Курятники!$O77+200) -> 200
H78: 0 | K78: =SUM(Курятники!$J78+50) -> 50 | L78: =SUM(Курятники!$K78+50) -> 100 | M78: =SUM(Курятники!$L78+50) -> 150 | P78: =SUM(Курятники!$O78+200) -> 200
H79: 0 | K79: =SUM(Курятники!$J79+50) -> 50 | L79: =SUM(Курятники!$K79+50) -> 100 | M79: =SUM(Курятники!$L79+50) -> 150 | P79: =SUM(Курятники!$O79+200) -> 200
H80: 0 | K80: =SUM(Курятники!$J80+50) -> 50 | L80: =SUM(Курятники!$K80+50) -> 100 | M80: =SUM(Курятники!$L80+50) -> 150 | P80: =SUM(Курятники!$O80+200) -> 200
H81: 0 | K81: =SUM(Курятники!$J81+50) -> 50 | L81: =SUM(Курятники!$K81+50) -> 100 | M81: =SUM(Курятники!$L81+50) -> 150 | P81: =SUM(Курятники!$O81+200) -> 200
H82: 0 | K82: =SUM(Курятники!$J82+50) -> 50 | L82: =SUM(Курятники!$K82+50) -> 100 | M82: =SUM(Курятники!$L82+50) -> 150 | P82: =SUM(Курятники!$O82+200) -> 200
H83: 0 | K83: =SUM(Курятники!$J83+50) -> 50 | L83: =SUM(Курятники!$K83+50) -> 100 | M83: =SUM(Курятники!$L83+50) -> 150 | P83: =SUM(Курятники!$O83+200) -> 200
H84: 0 | K84: =SUM(Курятники!$J84+50) -> 50 | L84: =SUM(Курятники!$K84+50) -> 100 | M84: =SUM(Курятники!$L84+50) -> 150 | P84: =SUM(Курятники!$O84+200) -> 200
H85: 0 | K85: =SUM(Курятники!$J85+50) -> 50 | L85: =SUM(Курятники!$K85+50) -> 100 | M85: =SUM(Курятники!$L85+50) -> 150 | P85: =SUM(Курятники!$O85+200) -> 200
H86: 0 | K86: =SUM(Курятники!$J86+50) -> 50 | L86: =SUM(Курятники!$K86+50) -> 100 | M86: =SUM(Курятники!$L86+50) -> 150 | P86: =SUM(Курятники!$O86+200) -> 200
H87: 0 | K87: =SUM(Курятники!$J87+50) -> 50 | L87: =SUM(Курятники!$K87+50) -> 100 | M87: =SUM(Курятники!$L87+50) -> 150 | P87: =SUM(Курятники!$O87+200) -> 200
H88: 0 | K88: =SUM(Курятники!$J88+50) -> 50 | L88: =SUM(Курятники!$K88+50) -> 100 | M88: =SUM(Курятники!$L88+50) -> 150 | P88: =SUM(Курятники!$O88+200) -> 200
H89: 0 | K89: =SUM(Курятники!$J89+50) -> 50 | L89: =SUM(Курятники!$K89+50) -> 100 | M89: =SUM(Курятники!$L89+50) -> 150 | P89: =SUM(Курятники!$O89+200) -> 200
H90: 0 | K90: =SUM(Курятники!$J90+50) -> 50 | L90: =SUM(Курятники!$K90+50) -> 100 | M90: =SUM(Курятники!$L90+50) -> 150 | P90: =SUM(Курятники!$O90+200) -> 200
H91: 0 | K91: =SUM(Курятники!$J91+50) -> 50 | L91: =SUM(Курятники!$K91+50) -> 100 | M91: =SUM(Курятники!$L91+50) -> 150 | P91: =SUM(Курятники!$O91+200) -> 200
H92: 0 | K92: =SUM(Курятники!$J92+50) -> 50 | L92: =SUM(Курятники!$K92+50) -> 100 | M92: =SUM(Курятники!$L92+50) -> 150 | P92: =SUM(Курятники!$O92+200) -> 200
H93: 0 | K93: =SUM(Курятники!$J93+50) -> 50 | L93: =SUM(Курятники!$K93+50) -> 100 | M93: =SUM(Курятники!$L93+50) -> 150 | P93: =SUM(Курятники!$O93+200) -> 200
H94: 0 | K94: =SUM(Курятники!$J94+50) -> 50 | L94: =SUM(Курятники!$K94+50) -> 100 | M94: =SUM(Курятники!$L94+50) -> 150 | P94: =SUM(Курятники!$O94+200) -> 200
H95: 0 | K95: =SUM(Курятники!$J95+50) -> 50 | L95: =SUM(Курятники!$K95+50) -> 100 | M95: =SUM(Курятники!$L95+50) -> 150 | P95: =SUM(Курятники!$O95+200) -> 200
H96: 0 | K96: =SUM(Курятники!$J96+50) -> 50 | L96: =SUM(Курятники!$K96+50) -> 100 | M96: =SUM(Курятники!$L96+50) -> 150 | P96: =SUM(Курятники!$O96+200) -> 200
H97: 0 | K97: =SUM(Курятники!$J97+50) -> 50 | L97: =SUM(Курятники!$K97+50) -> 100 | M97: =SUM(Курятники!$L97+50) -> 150 | P97: =SUM(Курятники!$O97+200) -> 200
H98: =SUM(F98-G98) -> 0 | K98: =SUM(Курятники!$J98+50) -> 50 | L98: =SUM(Курятники!$K98+50) -> 100 | M98: =SUM(Курятники!$L98+50) -> 150 | P98: =SUM(Курятники!$O98+200) -> 200
H99: 0 | K99: =SUM(Курятники!$J99+50) -> 50 | L99: =SUM(Курятники!$K99+50) -> 100 | M99: =SUM(Курятники!$L99+50) -> 150 | P99: =SUM(Курятники!$O99+200) -> 200
H100: 0 | K100: =SUM(Курятники!$J100+50) -> 50 | L100: =SUM(Курятники!$K100+50) -> 100 | M100: =SUM(Курятники!$L100+50) -> 150 | P100: =SUM(Курятники!$O100+200) -> 200
H101: 0 | K101: =SUM(Курятники!$J101+50) -> 50 | L101: =SUM(Курятники!$K101+50) -> 100 | M101: =SUM(Курятники!$L101+50) -> 150 | P101: =SUM(Курятники!$O101+200) -> 200
H102: 0 | K102: =SUM(Курятники!$J102+50) -> 50 | L102: =SUM(Курятники!$K102+50) -> 100 | M102: =SUM(Курятники!$L102+50) -> 150 | P102: =SUM(Курятники!$O102+200) -> 200
H103: 0 | K103: =SUM(Курятники!$J103+50) -> 50 | L103: =SUM(Курятники!$K103+50) -> 100 | M103: =SUM(Курятники!$L103+50) -> 150 | P103: =SUM(Курятники!$O103+200) -> 200
H104: 0 | K104: =SUM(Курятники!$J104+50) -> 50 | L104: =SUM(Курятники!$K104+50) -> 100 | M104: =SUM(Курятники!$L104+50) -> 150 | P104: =SUM(Курятники!$O104+200) -> 200
H105: 0 | K105: =SUM(Курятники!$J105+50) -> 50 | L105: =SUM(Курятники!$K105+50) -> 100 | M105: =SUM(Курятники!$L105+50) -> 150 | P105: =SUM(Курятники!$O105+200) -> 200
H106: 0 | K106: =SUM(Курятники!$J106+50) -> 50 | L106: =SUM(Курятники!$K106+50) -> 100 | M106: =SUM(Курятники!$L106+50) -> 150 | P106: =SUM(Курятники!$O106+200) -> 200
H107: 0 | K107: =SUM(Курятники!$J107+50) -> 50 | L107: =SUM(Курятники!$K107+50) -> 100 | M107: =SUM(Курятники!$L107+50) -> 150 | P107: =SUM(Курятники!$O107+200) -> 200
H108: 0 | K108: =SUM(Курятники!$J108+50) -> 50 | L108: =SUM(Курятники!$K108+50) -> 100 | M108: =SUM(Курятники!$L108+50) -> 150 | P108: =SUM(Курятники!$O108+200) -> 200
H109: 0 | K109: =SUM(Курятники!$J109+50) -> 50 | L109: =SUM(Курятники!$K109+50) -> 100 | M109: =SUM(Курятники!$L109+50) -> 150 | P109: =SUM(Курятники!$O109+200) -> 200
H110: 0 | K110: =SUM(Курятники!$J110+50) -> 50 | L110: =SUM(Курятники!$K110+50) -> 100 | M110: =SUM(Курятники!$L110+50) -> 150 | P110: =SUM(Курятники!$O110+200) -> 200
H111: 0 | K111: =SUM(Курятники!$J111+50) -> 50 | L111: =SUM(Курятники!$K111+50) -> 100 | M111: =SUM(Курятники!$L111+50) -> 150 | P111: =SUM(Курятники!$O111+200) -> 200
H112: 0 | K112: =SUM(Курятники!$J112+50) -> 50 | L112: =SUM(Курятники!$K112+50) -> 100 | M112: =SUM(Курятники!$L112+50) -> 150 | P112: =SUM(Курятники!$O112+200) -> 200
H113: 0 | K113: =SUM(Курятники!$J113+50) -> 50 | L113: =SUM(Курятники!$K113+50) -> 100 | M113: =SUM(Курятники!$L113+50) -> 150 | P113: =SUM(Курятники!$O113+200) -> 200
H114: 0 | K114: =SUM(Курятники!$J114+50) -> 50 | L114: =SUM(Курятники!$K114+50) -> 100 | M114: =SUM(Курятники!$L114+50) -> 150 | P114: =SUM(Курятники!$O114+200) -> 200
H115: 0 | K115: =SUM(Курятники!$J115+50) -> 50 | L115: =SUM(Курятники!$K115+50) -> 100 | M115: =SUM(Курятники!$L115+50) -> 150 | P115: =SUM(Курятники!$O115+200) -> 200
H116: 0 | K116: =SUM(Курятники!$J116+50) -> 50 | L116: =SUM(Курятники!$K116+50) -> 100 | M116: =SUM(Курятники!$L116+50) -> 150 | P116: =SUM(Курятники!$O116+200) -> 200
H117: 0 | K117: =SUM(Курятники!$J117+50) -> 50 | L117: =SUM(Курятники!$K117+50) -> 100 | M117: =SUM(Курятники!$L117+50) -> 150 | P117: =SUM(Курятники!$O117+200) -> 200
H118: 0 | K118: =SUM(Курятники!$J118+50) -> 50 | L118: =SUM(Курятники!$K118+50) -> 100 | M118: =SUM(Курятники!$L118+50) -> 150 | P118: =SUM(Курятники!$O118+200) -> 200
H119: 0 | K119: =SUM(Курятники!$J119+50) -> 50 | L119: =SUM(Курятники!$K119+50) -> 100 | M119: =SUM(Курятники!$L119+50) -> 150 | P119: =SUM(Курятники!$O119+200) -> 200
H120: 0 | K120: =SUM(Курятники!$J120+50) -> 50 | L120: =SUM(Курятники!$K120+50) -> 100 | M120: =SUM(Курятники!$L120+50) -> 150 | P120: =SUM(Курятники!$O120+200) -> 200
H121: 0 | K121: =SUM(Курятники!$J121+50) -> 50 | L121: =SUM(Курятники!$K121+50) -> 100 | M121: =SUM(Курятники!$L121+50) -> 150 | P121: =SUM(Курятники!$O121+200) -> 200
H122: 0 | K122: =SUM(Курятники!$J122+50) -> 50 | L122: =SUM(Курятники!$K122+50) -> 100 | M122: =SUM(Курятники!$L122+50) -> 150 | P122: =SUM(Курятники!$O122+200) -> 200
H123: 0 | K123: =SUM(Курятники!$J123+50) -> 50 | L123: =SUM(Курятники!$K123+50) -> 100 | M123: =SUM(Курятники!$L123+50) -> 150 | P123: =SUM(Курятники!$O123+200) -> 200
H124: 0 | K124: =SUM(Курятники!$J124+50) -> 50 | L124: =SUM(Курятники!$K124+50) -> 100 | M124: =SUM(Курятники!$L124+50) -> 150 | P124: =SUM(Курятники!$O124+200) -> 200
H125: 0 | K125: =SUM(Курятники!$J125+50) -> 50 | L125: =SUM(Курятники!$K125+50) -> 100 | M125: =SUM(Курятники!$L125+50) -> 150 | P125: =SUM(Курятники!$O125+200) -> 200
H126: 0 | K126: =SUM(Курятники!$J126+50) -> 50 | L126: =SUM(Курятники!$K126+50) -> 100 | M126: =SUM(Курятники!$L126+50) -> 150 | P126: =SUM(Курятники!$O126+200) -> 200
H127: 0 | K127: =SUM(Курятники!$J127+50) -> 50 | L127: =SUM(Курятники!$K127+50) -> 100 | M127: =SUM(Курятники!$L127+50) -> 150 | P127: =SUM(Курятники!$O127+200) -> 200
H128: 0 | K128: =SUM(Курятники!$J128+50) -> 50 | L128: =SUM(Курятники!$K128+50) -> 100 | M128: =SUM(Курятники!$L128+50) -> 150 | P128: =SUM(Курятники!$O128+200) -> 200
H129: 0 | K129: =SUM(Курятники!$J129+50) -> 50 | L129: =SUM(Курятники!$K129+50) -> 100 | M129: =SUM(Курятники!$L129+50) -> 150 | P129: =SUM(Курятники!$O129+200) -> 200
H130: =SUM(F130-G130) -> 0 | K130: =SUM(Курятники!$J130+50) -> 50 | L130: =SUM(Курятники!$K130+50) -> 100 | M130: =SUM(Курятники!$L130+50) -> 150 | P130: =SUM(Курятники!$O130+200) -> 200
H131: 0 | K131: =SUM(Курятники!$J131+50) -> 50 | L131: =SUM(Курятники!$K131+50) -> 100 | M131: =SUM(Курятники!$L131+50) -> 150 | P131: =SUM(Курятники!$O131+200) -> 200
H132: 0 | K132: =SUM(Курятники!$J132+50) -> 50 | L132: =SUM(Курятники!$K132+50) -> 100 | M132: =SUM(Курятники!$L132+50) -> 150 | P132: =SUM(Курятники!$O132+200) -> 200
H133: 0 | K133: =SUM(Курятники!$J133+50) -> 50 | L133: =SUM(Курятники!$K133+50) -> 100 | M133: =SUM(Курятники!$L133+50) -> 150 | P133: =SUM(Курятники!$O133+200) -> 200
H134: 0 | K134: =SUM(Курятники!$J134+50) -> 50 | L134: =SUM(Курятники!$K134+50) -> 100 | M134: =SUM(Курятники!$L134+50) -> 150 | P134: =SUM(Курятники!$O134+200) -> 200
H135: 0 | K135: =SUM(Курятники!$J135+50) -> 50 | L135: =SUM(Курятники!$K135+50) -> 100 | M135: =SUM(Курятники!$L135+50) -> 150 | P135: =SUM(Курятники!$O135+200) -> 200
H136: 0 | K136: =SUM(Курятники!$J136+50) -> 50 | L136: =SUM(Курятники!$K136+50) -> 100 | M136: =SUM(Курятники!$L136+50) -> 150 | P136: =SUM(Курятники!$O136+200) -> 200
H137: 0 | K137: =SUM(Курятники!$J137+50) -> 50 | L137: =SUM(Курятники!$K137+50) -> 100 | M137: =SUM(Курятники!$L137+50) -> 150 | P137: =SUM(Курятники!$O137+200) -> 200
H138: 0 | K138: =SUM(Курятники!$J138+50) -> 50 | L138: =SUM(Курятники!$K138+50) -> 100 | M138: =SUM(Курятники!$L138+50) -> 150 | P138: =SUM(Курятники!$O138+200) -> 200
H139: 0 | K139: =SUM(Курятники!$J139+50) -> 50 | L139: =SUM(Курятники!$K139+50) -> 100 | M139: =SUM(Курятники!$L139+50) -> 150 | P139: =SUM(Курятники!$O139+200) -> 200
H140: 0 | K140: =SUM(Курятники!$J140+50) -> 50 | L140: =SUM(Курятники!$K140+50) -> 100 | M140: =SUM(Курятники!$L140+50) -> 150 | P140: =SUM(Курятники!$O140+200) -> 200
H141: 0 | K141: =SUM(Курятники!$J141+50) -> 50 | L141: =SUM(Курятники!$K141+50) -> 100 | M141: =SUM(Курятники!$L141+50) -> 150 | P141: =SUM(Курятники!$O141+200) -> 200
H142: 0 | K142: =SUM(Курятники!$J142+50) -> 50 | L142: =SUM(Курятники!$K142+50) -> 100 | M142: =SUM(Курятники!$L142+50) -> 150 | P142: =SUM(Курятники!$O142+200) -> 200
H143: 0 | K143: =SUM(Курятники!$J143+50) -> 50 | L143: =SUM(Курятники!$K143+50) -> 100 | M143: =SUM(Курятники!$L143+50) -> 150 | P143: =SUM(Курятники!$O143+200) -> 200

Sheet Окрасы
A1: аутосексный
A2: белый
A3: голубой
A4: голубо-окаймленный
A5: дикий
A6: золотая кукушка
A7: золотистый черно-окаймленный
A8: золотой
A9: красный
A10: красный мрамор
A11: красный фарфор
A12: красный черно-окаймленный
A13: кремовый аутосексный
A14: кукушка
A15: курапатчетая
A16: лавандовый
A17: лососевый
A18: палевый
A19: пшеничный
A20: серебрянный черно-окаймленный
A21: серебряный
A22: темная
A23: черно-медный
A24: черный
A25: черный мрамор
A26: шамуа

Sheet Породы
A1: Амераукана | B1: 1
A2: Араукана | B2: 2
A3: Аям Цемани | B3: 3
A4: Барневельдер | B4: 4
A5: Билефельдер | B5: 5
A6: Брама | B6: 6
A7: Брессгальская | B7: 7
A8: Виандот | B8: 8
A9: Галан (русская черная бородатая) | B9: 9
A10: Джерсийский гигант | B10: 10
A11: Китайская шелковая | B11: 11
A12: Кохинхин | B12: 12
A13: Ла Флеш | B13: 13
A14: Легбар | B14: 14
A15: Мехеленская | B15: 15
A16: Мильфлер | B16: 16
A17: Мини-мясная | B17: 17
A18: Маран | B18: 18
A19: Орпингтон | B19: 19
A20: Сибрайт | B20: 20
A21: Сусекс | B21: 21
A22: Фавероль | B22: 22
B23: 23
B24: 24
B25: 25
B26: 26
B27: 1C
B28: 2C
B29: 3C
B30: 4C
B31: 5C
B32: 6C
B33: 7C
B34: 8C
B35: 9C
B36: 10C
B37: 11C
B38: 12C
B39: 13C
B40: 14C
B41: 15C
B42: 16C

Sheet Покупатели
